{"text_format":"1","workbook":"xlsx","n_sheets":3,"sheets":["申込シート","参加確認","集計"],"not_rendered":{"charts":0,"images":0,"macros":1,"external_links":0,"defined_names":3,"comments":0,"pivot_tables":0},"unopened":[],"bounds":{"document_bytes":16777216,"sheet_cells":100000,"rows_first":2000,"rows_last":500,"rows_between":2000,"halvings":0,"cell_chars":16384,"cell_head_chars":4096},"cells_cut":0,"cells_raw":0,"read":"whole","date_system":"1900"}

{"sheet":"申込シート","index":0,"n_rows":79,"n_cols":44,"rows_kept":79,"cut":false,"hidden":false,"merged":[[0,17,0,23],[29,14,30,14],[29,15,30,17],[29,18,30,18],[29,19,30,20],[29,21,30,21],[29,22,30,23],[29,1,30,1],[29,2,29,3],[30,2,30,3],[29,4,30,4],[29,5,30,6],[29,7,30,8],[29,9,30,11],[29,12,30,12],[29,13,30,13],[1,1,1,23],[23,7,24,8],[15,3,17,9],[4,16,4,18],[21,22,22,23],[21,2,21,3],[22,2,22,3],[24,2,24,3],[6,17,6,22],[33,22,34,23],[23,14,24,14],[31,14,32,14],[33,14,34,14],[23,19,24,20],[21,15,21,21],[22,15,22,21],[33,15,34,17],[33,18,34,18],[33,21,34,21],[25,15,26,17],[25,18,26,18],[25,21,26,21],[27,15,28,17],[27,18,28,18],[27,21,28,21],[31,19,32,20],[33,19,34,20],[27,14,28,14],[27,13,28,13],[23,1,24,1],[25,1,26,1],[27,1,28,1],[26,2,26,3],[28,2,28,3],[23,22,24,23],[8,17,8,22],[12,17,12,22],[10,17,10,22],[21,1,22,1],[8,8,8,9],[12,8,12,9],[21,4,22,4],[21,7,22,8],[21,9,21,14],[22,9,22,14],[23,4,24,4],[21,5,22,6],[32,2,32,3],[25,2,25,3],[23,2,23,3],[27,2,27,3],[31,2,31,3],[31,4,32,4],[23,9,24,11],[25,9,26,11],[25,22,26,23],[27,22,28,23],[31,22,32,23],[25,19,26,20],[27,19,28,20],[23,15,24,17],[23,18,24,18],[23,21,24,21],[31,15,32,17],[31,18,32,18],[31,21,32,21],[25,7,26,8],[27,7,28,8],[25,14,26,14],[27,9,28,11],[27,12,28,12],[42,1,42,22],[45,1,45,22],[37,1,37,5],[38,1,38,5],[39,1,39,5],[40,1,40,5],[43,1,43,23],[37,6,37,14],[38,6,38,14],[39,6,39,14],[40,6,40,14],[38,17,38,18],[38,19,38,20],[39,19,39,20],[40,19,40,20],[41,19,41,20],[39,17,39,18],[40,17,40,18],[41,17,41,18],[44,1,44,23],[31,1,32,1],[33,1,34,1],[23,13,24,13],[25,13,26,13],[33,4,34,4],[23,5,24,6],[25,5,26,6],[27,5,28,6],[31,5,32,6],[33,5,34,6],[25,4,26,4],[27,4,28,4],[31,7,32,8],[33,7,34,8],[31,13,32,13],[33,13,34,13],[31,9,32,11],[33,9,34,11],[23,12,24,12],[25,12,26,12],[31,12,32,12],[33,12,34,12],[33,2,33,3],[34,2,34,3]]}
[null,null,null,null,null,null,null,null,null,null,null,null,null,null,null,null,null,"京都市立学校以外用",null,null,null,null,null,null,null,null,null,null,null,null,null,null,null,"2014-01-01","本日",null,null,null,null,null,"北","北区","加茂川中学校","492-1884"]
[null,"令和元年度\n　　　　　　　鳴滝総合支援学校　オープンキャンパス参加申込シート",null,null,null,null,null,null,null,null,null,null,null,null,null,null,null,null,null,null,null,null,null,null,null,null,null,null,null,"リスト","11","1",null,"1月20日（月）",null,"6年","男","育成","１回目","あり","上京",null,"西賀茂中学校","493-7001"]
[null,null,null,null,null,null,null,null,null,null,null,null,null,null,null,null,null,null,null,null,null,null,null,null,null,null,null,null,null,null,"12","2",null,"1月31日（金）",null,null,"女","普通","２回目","なし","左京",null,"旭丘中学校","492-1330"]
[null,"（あて先）京都市立鳴滝総合支援学校　校長",null,null,null,null,null,null,null,null,null,null,null,null,null,null,null,null,null,null,null,null,null,null,null,null,null,null,null,null,"１","3",null,"２月　７日（金）",null,null,null,null,"３回目",null,"中京",null,"衣笠中学校","461-2222"]
[null,null,null,null,null,null,null,null,null,null,null,null,null,null,null,null,"令和元",null,null,"年",null,"月",null,"日",null,null,null,null,null,null,"2","4",null,"２月１４日（金）",null,null,null,null,"４回目",null,"東山","上京区","烏丸中学校","431-0168"]
[null,null,null,null,null,null,null,null,null,null,null,null,null,null,null,null,null,null,null,null,null,null,null,null,null,null,null,null,null,null,null,"5",null,null,null,null,null,null,"５回目",null,"山科",null,"上京中学校","431-8151"]
[null,null,null,null,null,null,null,null,null,null,null,null,null,null,null,"市町行政区",null,null,null,null,null,null,null,null,null,null,null,null,null,null,null,"6",null,null,null,null,null,null,"６回目",null,"下京",null,"嘉楽中学校","431-0312"]
[null,null,null,null,null,null,null,null,null,null,null,null,null,null,null,null,null,null,null,null,null,null,null,null,null,null,null,null,null,null,null,"7",null,null,null,null,null,null,"７回目",null,"南",null,"二条中学校","821-1196"]
[null,null,null,null,null,null,null,null,null,null,null,null,null,null,null,"学校名",null,null,null,null,null,null,null,null,null,null,null,null,null,null,null,"8",null,null,null,null,null,null,"８回目",null,"右京",null,"北総合支援学校","431-6636"]
[null,null,null,null,null,null,null,null,null,null,null,null,null,null,null,null,null,null,null,null,null,null,null,null,null,null,null,null,null,null,null,"9",null,"　　　　　　　　　　　　　",null,null,null,null,null,null,"西京","左京区","岡崎中学校","771-4191"]
[null,null,null,null,null,null,null,null,null,null,null,null,null,null,null,"電話番号",null,null,null,null,null,null,null,null,null,null,null,null,null,null,null,"10",null,null,null,null,null,null,null,null,"伏見",null,"高野中学校","781-8134"]
[null,null,null,null,null,null,null,null,null,null,null,null,null,null,null,null,null,null,null,null,null,null,null,null,null,null,null,null,null,null,null,"11",null,null,null,null,null,null,null,null,null,null,"下鴨中学校","781-9181"]
[null,null,null,null,null,null,null,null,null,null,null,null,null,null,null,"記入者　",null,null,null,null,null,null,null,null,null,null,null,null,null,null,null,"12",null,null,null,null,null,null,null,null,null,null,"近衛中学校","771-0007"]
[null,null,null,null,null,null,null,null,null,null,null,null,null,null,null,null,null,null,null,null,null,null,null,null,null,null,null,null,null,null,null,"13",null,null,null,null,null,null,null,null,null,null,"修学院中学校","781-3000"]
[null,"１　希望日",null,null,null,null,null,null,null,null,null,null,null,null,null,null,null,null,null,null,null,null,null,null,null,null,null,null,null,null,null,"14",null,null,null,null,null,null,null,null,null,null,"洛北中学校","721-7445"]
[null,null,null,null,null,null,null,null,null,null,null,null,null,null,null,null,null,null,null,null,null,null,null,null,null,null,null,null,null,null,null,"15",null,null,null,null,null,null,null,null,null,null,"大原小中学校","744-2004"]
[null,null,null,null,null,null,null,null,null,null,null,null,null,null,null,null,null,null,null,null,null,null,null,null,null,null,null,null,null,null,null,"16",null,null,null,null,null,null,null,null,null,null,"花背小中学校","746-0131"]
[null,null,null,null,null,null,null,null,null,null,null,null,null,null,null,null,null,null,null,null,null,null,null,null,null,null,null,null,null,null,null,"17",null,null,null,null,null,null,null,null,null,"中京区","北野中学校","463-7101"]
[null,null,null,null,null,null,null,null,null,null,null,null,null,null,null,null,null,null,null,null,null,null,null,null,null,null,null,null,null,null,null,"18",null,null,null,null,null,null,null,null,null,null,"朱雀中学校","841-0205"]
[null,"２　参加者",null,null,null,null,null,null,null,null,null,null,null,null,null,null,null,null,null,null,null,null,null,null,null,null,null,null,null,null,null,"19",null,null,null,null,null,null,null,null,null,null,"京都御池中学校","221-0414"]
[null,"①　中学校２年生生徒及び保護者，家族",null,null,null,null,null,null,null,null,null,null,null,null,null,null,null,null,null,null,null,null,null,null,null,null,null,null,null,null,null,"20",null,null,null,null,null,null,null,null,null,null,"中京中学校","801-3266"]
[null,"学年等","ふりがな（上段）",null,"男・女","在籍\n学級",null,"今年度の参加回数",null,"参加保護者名",null,null,null,null,null,"参加保護者名",null,null,null,null,null,null,"個別相談\n希望の有無",null,null,null,null,null,null,null,null,"21",null,null,null,null,null,null,null,null,null,null,"松原中学校","841-0650"]
[null,null,"参加生徒名（下段）",null,null,null,null,null,null,"（生徒との関係）",null,null,null,null,null,"（生徒との関係）",null,null,null,null,null,null,null,null,null,null,null,null,null,null,null,"22",null,null,null,null,null,null,null,null,null,null,"西ノ京中学校","802-3365"]
[null,2,null,null,null,null,null,null,null,null,null,null,"（",null,"）",null,null,null,"（",null,null,"）",null,null,null,null,null,null,null,null,null,"23",null,null,null,null,null,null,null,null,null,null,"西京高等学校附属中学校","841-0010"]
[null,null,null,null,null,null,null,null,null,null,null,null,null,null,null,null,null,null,null,null,null,null,null,null,null,null,null,null,null,null,null,"24",null,null,null,null,null,null,null,null,null,null,"洛風中学校","213-2222"]
[null,2,null,null,null,null,null,null,null,null,null,null,"（",null,"）",null,null,null,"（",null,null,"）",null,null,null,null,null,null,null,null,null,"25",null,null,null,null,null,null,null,null,null,"東山区","開睛小中学校","533-8811"]
[null,null,null,null,null,null,null,null,null,null,null,null,null,null,null,null,null,null,null,null,null,null,null,null,null,null,null,null,null,null,null,"26",null,null,null,null,null,null,null,null,null,null,"東山泉小中学校","532-0355"]
[null,2,null,null,null,null,null,null,null,null,null,null,"（",null,"）",null,null,null,"（",null,null,"）",null,null,null,null,null,null,null,null,null,"27",null,null,null,null,null,null,null,null,null,"山科区","山科中学校","594-1151"]
[null,null,null,null,null,null,null,null,null,null,null,null,null,null,null,null,null,null,null,null,null,null,null,null,null,null,null,null,null,null,null,"28",null,null,null,null,null,null,null,null,null,null,"勧修中学校","591-9111"]
[null,2,null,null,null,null,null,null,null,null,null,null,"（",null,"）",null,null,null,"（",null,null,"）",null,null,null,null,null,null,null,null,null,"29",null,null,null,null,null,null,null,null,null,null,"大宅中学校","573-3067"]
[null,null,null,null,null,null,null,null,null,null,null,null,null,null,null,null,null,null,null,null,null,null,null,null,null,null,null,null,null,null,null,"30",null,null,null,null,null,null,null,null,null,null,"安祥寺中学校","592-2848"]
[null,2,null,null,null,null,null,null,null,null,null,null,"（",null,"）",null,null,null,"（",null,null,"）",null,null,null,null,null,null,null,null,null,"31",null,null,null,null,null,null,null,null,null,null,"音羽中学校","581-9115"]
[null,null,null,null,null,null,null,null,null,null,null,null,null,null,null,null,null,null,null,null,null,null,null,null,null,null,null,null,null,null,null,null,null,null,null,null,null,null,null,null,null,null,"花山中学校","581-5128"]
[null,2,null,null,null,null,null,null,null,null,null,null,"（",null,"）",null,null,null,"（",null,null,"）",null,null,null,null,null,null,null,null,null,null,null,null,null,null,null,null,null,null,null,null,"東総合支援学校","594-6501"]
[null,null,null,null,null,null,null,null,null,null,null,null,null,null,null,null,null,null,null,null,null,null,null,null,null,null,null,null,null,null,null,null,null,null,null,null,null,null,null,null,null,"下京区","下京中学校","371-2100"]
[null,null,null,null,null,null,null,null,null,null,null,null,null,null,null,null,null,null,null,null,null,null,null,null,null,null,null,null,null,null,null,null,null,null,null,null,null,null,null,null,null,null,"七条中学校","313-0972"]
[null,"②　中学校，総合支援学校（中学部）の教職員",null,null,null,null,null,null,null,null,null,null,null,null,null,null,null,null,null,null,null,null,null,null,null,null,null,null,null,null,null,null,null,null,null,null,null,null,null,null,null,null,"洛友中学校","821-2196"]
[null,"教　職　員　の　氏　名",null,null,null,null,"生徒・保護者との関係 ／校務分掌",null,null,null,null,null,null,null,null,null,"参加人数",null,null,null,null,null,null,null,null,null,null,null,null,null,null,null,null,null,null,null,null,null,null,null,null,"南区","八条中学校","681-5264"]
[null,null,null,null,null,null,null,null,null,null,null,null,null,null,null,null,null,"生　徒",null,{"$f":"COUNTA(C25,C27,C29,C31,C33,C35)","v":0},null,"名",null,null,null,null,null,null,null,null,null,null,null,null,null,null,null,null,null,null,null,null,"九条中学校","681-2211"]
[null,null,null,null,null,null,null,null,null,null,null,null,null,null,null,null,null,"保護者",null,{"$f":"COUNTA(J24,J26,J28,J30,J32,J34,P24,P26,P28,P30,P32,P34)","v":0},null,"名",null,null,null,null,null,null,null,null,null,null,null,null,null,null,null,null,null,null,null,null,"洛南中学校","691-0018"]
[null,null,null,null,null,null,null,null,null,null,null,null,null,null,null,null,null,"教職員",null,{"$f":"COUNTA(B39:F41)","v":0},null,"名",null,null,null,null,null,null,null,null,null,null,null,null,null,null,null,null,null,null,null,null,"久世中学校","933-3223"]
[null,null,null,null,null,null,null,null,null,null,null,null,null,null,null,null,null,"合　計",null,{"$f":"SUM(T39:U41)","v":0},null,"名",null,null,null,null,null,null,null,null,null,null,null,null,null,null,null,null,null,null,null,null,"凌風小中学校","693-8222"]
[null,"○欄が不足する場合はファイルをコピーして使用してください",null,null,null,null,null,null,null,null,null,null,null,null,null,null,null,null,null,null,null,null,null,null,null,null,null,null,null,null,null,null,null,null,null,null,null,null,null,null,null,"右京区","蜂ヶ岡中学校","861-2168"]
[null,"○学校からの鳴滝総合支援学校への申込締切日および時刻は，各実施日２週間前の同じ曜日の午後５時です\n○参加申込シートは管理職の先生から，電子メールで　鳴滝総合副教頭 西坂英美子まで 送信していただきます様お願いいたします\n  （添付されるファイルには，○○の所に貴校の学校名を付けてください）",null,null,null,null,null,null,null,null,null,null,null,null,null,null,null,null,null,null,null,null,null,null,null,null,null,null,null,null,null,null,null,null,null,null,null,null,null,null,null,null,"太秦中学校","872-0037"]
[null,"○参加確認書を電子メールにて送付します（期限内でも参加者数が多い場合は，ご希望に添えないこともあります）",null,null,null,null,null,null,null,null,null,null,null,null,null,null,null,null,null,null,null,null,null,null,null,null,null,null,null,null,null,null,null,null,null,null,null,null,null,null,null,null,"嵯峨中学校","871-0533"]
[null,null,null,null,null,null,null,null,null,null,null,null,null,null,null,null,null,null,null,null,null,null,null,null,null,null,null,null,null,null,null,null,null,null,null,null,null,null,null,null,null,null,"四条中学校","312-0040"]
[null,null,null,null,null,null,null,null,null,null,null,null,null,null,null,null,null,null,null,null,null,null,null,null,null,null,null,null,null,null,null,null,null,null,null,null,null,null,null,null,null,null,"西京極中学校","315-1531"]
[null,null,null,null,null,null,null,null,null,null,null,null,null,null,null,null,null,null,null,null,null,null,null,null,null,null,null,null,null,null,null,null,null,null,null,null,null,null,null,null,null,null,"梅津中学校","882-0910"]
[null,null,null,null,null,null,null,null,null,null,null,null,null,null,null,null,null,null,null,null,null,null,null,null,null,null,null,null,null,null,null,null,null,null,null,null,null,null,null,null,null,null,"西院中学校","312-0365"]
[null,null,null,null,null,null,null,null,null,null,null,null,null,null,null,null,null,null,null,null,null,null,null,null,null,null,null,null,null,null,null,null,null,null,null,null,null,null,null,null,null,null,"高雄中学校","872-1286"]
[null,null,null,null,null,null,null,null,null,null,null,null,null,null,null,null,null,null,null,null,null,null,null,null,null,null,null,null,null,null,null,null,null,null,null,null,null,null,null,null,null,null,"双ヶ丘中学校","463-8165"]
[null,null,null,null,null,null,null,null,null,null,null,null,null,null,null,null,null,null,null,null,null,null,null,null,null,null,null,null,null,null,null,null,null,null,null,null,null,null,null,null,null,null,"周山中学校","852-0053"]
[null,null,null,null,null,null,null,null,null,null,null,null,null,null,null,null,null,null,null,null,null,null,null,null,null,null,null,null,null,null,null,null,null,null,null,null,null,null,null,null,null,null,"宕陰小中学校","0771-44-0310"]
[null,null,null,null,null,null,null,null,null,null,null,null,null,null,null,null,null,null,null,null,null,null,null,null,null,null,null,null,null,null,null,null,null,null,null,null,null,null,null,null,null,null,"鳴滝総合支援学校","461-3221"]
[null,null,null,null,null,null,null,null,null,null,null,null,null,null,null,null,null,null,null,null,null,null,null,null,null,null,null,null,null,null,null,null,null,null,null,null,null,null,null,null,null,"西京区","桂中学校","392-7200"]
[null,null,null,null,null,null,null,null,null,null,null,null,null,null,null,null,null,null,null,null,null,null,null,null,null,null,null,null,null,null,null,null,null,null,null,null,null,null,null,null,null,null,"松尾中学校","391-9622"]
[null,null,null,null,null,null,null,null,null,null,null,null,null,null,null,null,null,null,null,null,null,null,null,null,null,null,null,null,null,null,null,null,null,null,null,null,null,null,null,null,null,null,"桂川中学校","392-9229"]
[null,null,null,null,null,null,null,null,null,null,null,null,null,null,null,null,null,null,null,null,null,null,null,null,null,null,null,null,null,null,null,null,null,null,null,null,null,null,null,null,null,null,"樫原中学校","392-6630"]
[null,null,null,null,null,null,null,null,null,null,null,null,null,null,null,null,null,null,null,null,null,null,null,null,null,null,null,null,null,null,null,null,null,null,null,null,null,null,null,null,null,null,"大枝中学校","333-1112"]
[null,null,null,null,null,null,null,null,null,null,null,null,null,null,null,null,null,null,null,null,null,null,null,null,null,null,null,null,null,null,null,null,null,null,null,null,null,null,null,null,null,null,"洛西中学校","331-6131"]
[null,null,null,null,null,null,null,null,null,null,null,null,null,null,null,null,null,null,null,null,null,null,null,null,null,null,null,null,null,null,null,null,null,null,null,null,null,null,null,null,null,null,"西陵中学校","332-0671"]
[null,null,null,null,null,null,null,null,null,null,null,null,null,null,null,null,null,null,null,null,null,null,null,null,null,null,null,null,null,null,null,null,null,null,null,null,null,null,null,null,null,null,"大原野中学校","333-3207"]
[null,null,null,null,null,null,null,null,null,null,null,null,null,null,null,null,null,null,null,null,null,null,null,null,null,null,null,null,null,null,null,null,null,null,null,null,null,null,null,null,null,null,"西総合支援学校","332-4275"]
[null,null,null,null,null,null,null,null,null,null,null,null,null,null,null,null,null,null,null,null,null,null,null,null,null,null,null,null,null,null,null,null,null,null,null,null,null,null,null,null,null,"伏見区","深草中学校","641-6522"]
[null,null,null,null,null,null,null,null,null,null,null,null,null,null,null,null,null,null,null,null,null,null,null,null,null,null,null,null,null,null,null,null,null,null,null,null,null,null,null,null,null,null,"藤森中学校","641-5227"]
[null,null,null,null,null,null,null,null,null,null,null,null,null,null,null,null,null,null,null,null,null,null,null,null,null,null,null,null,null,null,null,null,null,null,null,null,null,null,null,null,null,null,"桃山中学校","611-0268"]
[null,null,null,null,null,null,null,null,null,null,null,null,null,null,null,null,null,null,null,null,null,null,null,null,null,null,null,null,null,null,null,null,null,null,null,null,null,null,null,null,null,null,"伏見中学校","611-5161"]
[null,null,null,null,null,null,null,null,null,null,null,null,null,null,null,null,null,null,null,null,null,null,null,null,null,null,null,null,null,null,null,null,null,null,null,null,null,null,null,null,null,null,"神川中学校","934-1505"]
[null,null,null,null,null,null,null,null,null,null,null,null,null,null,null,null,null,null,null,null,null,null,null,null,null,null,null,null,null,null,null,null,null,null,null,null,null,null,null,null,null,null,"醍醐中学校","571-0065"]
[null,null,null,null,null,null,null,null,null,null,null,null,null,null,null,null,null,null,null,null,null,null,null,null,null,null,null,null,null,null,null,null,null,null,null,null,null,null,null,null,null,null,"春日丘中学校","571-4969"]
[null,null,null,null,null,null,null,null,null,null,null,null,null,null,null,null,null,null,null,null,null,null,null,null,null,null,null,null,null,null,null,null,null,null,null,null,null,null,null,null,null,null,"小栗栖中学校","572-3135"]
[null,null,null,null,null,null,null,null,null,null,null,null,null,null,null,null,null,null,null,null,null,null,null,null,null,null,null,null,null,null,null,null,null,null,null,null,null,null,null,null,null,null,"栗陵中学校","571-7631"]
[null,null,null,null,null,null,null,null,null,null,null,null,null,null,null,null,null,null,null,null,null,null,null,null,null,null,null,null,null,null,null,null,null,null,null,null,null,null,null,null,null,null,"桃陵中学校","611-3241"]
[null,null,null,null,null,null,null,null,null,null,null,null,null,null,null,null,null,null,null,null,null,null,null,null,null,null,null,null,null,null,null,null,null,null,null,null,null,null,null,null,null,null,"向島東中学校","601-7932"]
[null,null,null,null,null,null,null,null,null,null,null,null,null,null,null,null,null,null,null,null,null,null,null,null,null,null,null,null,null,null,null,null,null,null,null,null,null,null,null,null,null,null,"洛水中学校","602-3261"]
[null,null,null,null,null,null,null,null,null,null,null,null,null,null,null,null,null,null,null,null,null,null,null,null,null,null,null,null,null,null,null,null,null,null,null,null,null,null,null,null,null,null,"大淀中学校","631-7211"]
[null,null,null,null,null,null,null,null,null,null,null,null,null,null,null,null,null,null,null,null,null,null,null,null,null,null,null,null,null,null,null,null,null,null,null,null,null,null,null,null,null,null,"向島秀蓮小中学校","611-3346"]
[null,null,null,null,null,null,null,null,null,null,null,null,null,null,null,null,null,null,null,null,null,null,null,null,null,null,null,null,null,null,null,null,null,null,null,null,null,null,null,null,null,null,"呉竹総合支援学校","601-9104"]
[null,null,null,null,null,null,null,null,null,null,null,null,null,null,null,null,null,null,null,null,null,null,null,null,null,null,null,null,null,null,null,null,null,null,null,null,null,null,null,null,null,null,"桃陽総合支援学校","641-2634"]

{"sheet":"参加確認","index":1,"n_rows":39,"n_cols":24,"rows_kept":39,"cut":false,"hidden":true,"merged":[[37,1,37,23],[31,16,31,18],[0,1,0,23],[15,15,15,21],[15,22,16,23],[16,2,16,3],[16,9,16,14],[16,15,16,21],[17,21,18,21],[17,22,18,23],[18,2,18,3],[17,14,18,14],[17,15,18,17],[17,18,18,18],[9,3,11,9],[15,1,16,1],[15,2,15,3],[15,4,16,4],[15,5,16,6],[15,7,16,8],[15,9,15,14],[17,9,18,11],[17,12,18,12],[17,13,18,13],[17,1,18,1],[17,2,17,3],[17,4,18,4],[17,5,18,6],[17,7,18,8],[17,19,18,20],[19,21,20,21],[19,22,20,23],[20,2,20,3],[19,14,20,14],[19,15,20,17],[19,18,20,18],[19,19,20,20],[21,1,22,1],[21,2,21,3],[21,4,22,4],[21,5,22,6],[21,7,22,8],[21,9,22,11],[21,12,22,12],[19,12,20,12],[19,13,20,13],[19,1,20,1],[19,2,19,3],[19,4,20,4],[19,5,20,6],[19,7,20,8],[19,9,20,11],[22,2,22,3],[21,13,22,13],[23,18,24,18],[27,15,28,17],[27,18,28,18],[23,19,24,20],[23,21,24,21],[23,22,24,23],[21,22,22,23],[21,14,22,14],[21,15,22,17],[21,18,22,18],[21,19,22,20],[21,21,22,21],[27,19,28,20],[25,19,26,20],[25,21,26,21],[25,22,26,23],[25,15,26,17],[25,18,26,18],[27,14,28,14],[23,15,24,17],[27,4,28,4],[27,5,28,6],[27,7,28,8],[27,9,28,11],[25,9,26,11],[25,12,26,12],[23,14,24,14],[23,1,24,1],[23,2,23,3],[23,4,24,4],[23,5,24,6],[23,7,24,8],[23,9,24,11],[23,12,24,12],[23,13,24,13],[25,13,26,13],[25,14,26,14],[25,1,26,1],[25,2,25,3],[25,4,26,4],[25,5,26,6],[25,7,26,8],[24,2,24,3],[6,1,6,23],[38,1,38,23],[26,2,26,3],[35,19,35,20],[1,3,1,8],[33,1,33,5],[33,6,33,14],[33,19,33,20],[34,1,34,5],[34,6,34,14],[34,19,34,20],[27,21,28,21],[27,22,28,23],[28,2,28,3],[31,1,31,5],[31,6,31,14],[32,1,32,5],[32,6,32,14],[32,17,32,18],[32,19,32,20],[27,12,28,12],[27,13,28,13],[27,1,28,1],[27,2,27,3]]}
[null,"  令和元年度\n　　　　　　鳴滝総合支援学校オープンキャンパス参加確認書"]
[null,"（あて先）",null,{"$f":"申込シート!R9","v":0},null,null,null,null,null,"学校長様"]
[null,null,null,null,null,null,null,null,null,null,null,null,null,null,null,null,null,"令和元",null,"年",null,"月",null,"日"]
[]
[null,null,null,null,null,null,null,null,null,null,null,null,null,null,null,null,null,"京都市立鳴滝総合支援学校"]
[]
[null,"　京都市立鳴滝総合支援学校におけるオープンキャンパスへの参加について，以下のように決定いたしましたのでお知らせいたします。参加日，参加者及び内容をご確認いただきますようお願いいたします。"]
[]
[null,"１　希望日"]
[null,null,null,{"$f":"申込シート!D16","v":"00:00:00"}]
[]
[]
[]
[null,"２　参加者"]
[null,"①　職業学科見学を希望する小学校6年生の保護者，家族"]
[null,"学年等","ふりがな（上段）",null,"男・女","在籍\n学級",null,"参加\n回数",null,"参加保護者名",null,null,null,null,null,"参加保護者名",null,null,null,null,null,null,"個別相談希望の有無"]
[null,null,"参加生徒名（下段）",null,null,null,null,null,null,"（生徒との関係）",null,null,null,null,null,"（生徒との関係）"]
[null,{"$f":"申込シート!B24","v":2},{"$f":"申込シート!C24","v":0},{"$f":"申込シート!D24","v":0},{"$f":"申込シート!E24","v":0},{"$f":"申込シート!F24","v":0},{"$f":"申込シート!G24","v":0},{"$f":"申込シート!H24","v":0},{"$f":"申込シート!I24","v":0},{"$f":"申込シート!J24","v":0},{"$f":"申込シート!K24","v":0},{"$f":"申込シート!L24","v":0},"（",{"$f":"申込シート!N24","v":0},"）",{"$f":"申込シート!P24","v":0},{"$f":"申込シート!Q24","v":0},{"$f":"申込シート!R24","v":0},"（",{"$f":"申込シート!T24","v":0},{"$f":"申込シート!U24","v":0},"）",{"$f":"申込シート!W24","v":0},{"$f":"申込シート!X24","v":0}]
[null,null,{"$f":"申込シート!C25","v":0}]
[null,{"$f":"申込シート!B26","v":2},{"$f":"申込シート!C26","v":0},{"$f":"申込シート!D26","v":0},{"$f":"申込シート!E26","v":0},{"$f":"申込シート!F26","v":0},{"$f":"申込シート!G26","v":0},{"$f":"申込シート!H26","v":0},{"$f":"申込シート!I26","v":0},{"$f":"申込シート!J26","v":0},{"$f":"申込シート!K26","v":0},{"$f":"申込シート!L26","v":0},"（",{"$f":"申込シート!N26","v":0},"）",{"$f":"申込シート!P26","v":0},{"$f":"申込シート!Q26","v":0},{"$f":"申込シート!R26","v":0},"（",{"$f":"申込シート!T26","v":0},{"$f":"申込シート!U26","v":0},"）",{"$f":"申込シート!W26","v":0},{"$f":"申込シート!X26","v":0}]
[null,null,{"$f":"申込シート!C27","v":0}]
[null,{"$f":"申込シート!B28","v":2},{"$f":"申込シート!C28","v":0},{"$f":"申込シート!D28","v":0},{"$f":"申込シート!E28","v":0},{"$f":"申込シート!F28","v":0},{"$f":"申込シート!G28","v":0},{"$f":"申込シート!H28","v":0},{"$f":"申込シート!I28","v":0},{"$f":"申込シート!J28","v":0},{"$f":"申込シート!K28","v":0},{"$f":"申込シート!L28","v":0},"（",{"$f":"申込シート!N28","v":0},"）",{"$f":"申込シート!P28","v":0},{"$f":"申込シート!Q28","v":0},{"$f":"申込シート!R28","v":0},"（",{"$f":"申込シート!T28","v":0},{"$f":"申込シート!U28","v":0},"）",{"$f":"申込シート!W28","v":0},{"$f":"申込シート!X28","v":0}]
[null,null,{"$f":"申込シート!C29","v":0}]
[null,{"$f":"申込シート!B30","v":2},{"$f":"申込シート!C30","v":0},{"$f":"申込シート!D30","v":0},{"$f":"申込シート!E30","v":0},{"$f":"申込シート!F30","v":0},{"$f":"申込シート!G30","v":0},{"$f":"申込シート!H30","v":0},{"$f":"申込シート!I30","v":0},{"$f":"申込シート!J30","v":0},{"$f":"申込シート!K30","v":0},{"$f":"申込シート!L30","v":0},"（",{"$f":"申込シート!N30","v":0},"）",{"$f":"申込シート!P30","v":0},{"$f":"申込シート!Q30","v":0},{"$f":"申込シート!R30","v":0},"（",{"$f":"申込シート!T30","v":0},{"$f":"申込シート!U30","v":0},"）",{"$f":"申込シート!W30","v":0},{"$f":"申込シート!X30","v":0}]
[null,null,{"$f":"申込シート!C31","v":0}]
[null,{"$f":"申込シート!B32","v":2},{"$f":"申込シート!C32","v":0},{"$f":"申込シート!D32","v":0},{"$f":"申込シート!E32","v":0},{"$f":"申込シート!F32","v":0},{"$f":"申込シート!G32","v":0},{"$f":"申込シート!H32","v":0},{"$f":"申込シート!I32","v":0},{"$f":"申込シート!J32","v":0},{"$f":"申込シート!K32","v":0},{"$f":"申込シート!L32","v":0},"（",{"$f":"申込シート!N32","v":0},"）",{"$f":"申込シート!P32","v":0},{"$f":"申込シート!Q32","v":0},{"$f":"申込シート!R32","v":0},"（",{"$f":"申込シート!T32","v":0},{"$f":"申込シート!U32","v":0},"）",{"$f":"申込シート!W32","v":0},{"$f":"申込シート!X32","v":0}]
[null,null,{"$f":"申込シート!C33","v":0}]
[null,{"$f":"申込シート!B34","v":2},{"$f":"申込シート!C34","v":0},{"$f":"申込シート!D34","v":0},{"$f":"申込シート!E34","v":0},{"$f":"申込シート!F34","v":0},{"$f":"申込シート!G34","v":0},{"$f":"申込シート!H34","v":0},{"$f":"申込シート!I34","v":0},{"$f":"申込シート!J34","v":0},{"$f":"申込シート!K34","v":0},{"$f":"申込シート!L34","v":0},"（",{"$f":"申込シート!N34","v":0},"）",{"$f":"申込シート!P34","v":0},{"$f":"申込シート!Q34","v":0},{"$f":"申込シート!R34","v":0},"（",{"$f":"申込シート!T34","v":0},{"$f":"申込シート!U34","v":0},"）",{"$f":"申込シート!W34","v":0},{"$f":"申込シート!X34","v":0}]
[null,null,{"$f":"申込シート!C35","v":0}]
[]
[null,"②　中学校，総合支援学校（中学部）の教職員"]
[null,"教　職　員　の　氏　名",null,null,null,null,"参加生徒・保護者との関係 ／校務分掌",null,null,null,null,null,null,null,null,null,"参加人数"]
[null,{"$f":"申込シート!B39","v":0},null,null,null,null,{"$f":"申込シート!G39","v":0},null,null,null,null,null,null,null,null,null,null,"生　徒",null,{"$f":"申込シート!T39","v":0},null,"名"]
[null,{"$f":"申込シート!B40","v":0},null,null,null,null,{"$f":"申込シート!G40","v":0},null,null,null,null,null,null,null,null,null,null,"保護者",null,{"$f":"申込シート!T40","v":0},null,"名"]
[null,{"$f":"申込シート!B41","v":0},null,null,null,null,{"$f":"申込シート!G41","v":0},null,null,null,null,null,null,null,null,null,null,"教職員",null,{"$f":"申込シート!T41","v":0},null,"名"]
[null,null,null,null,null,null,null,null,null,null,null,null,null,null,null,null,null,"合　計",null,{"$f":"申込シート!T42","v":0},null,"名"]
[null,"③　日　程"]
[null,"　　９：００～　９：２０　　受付開始\n　　９：２０～　９：５０　　①ガイダンス　　　　　　 　\n　　９：５０～１１：５０　　②見学・体験（専門教科の見学・体験）\n　１１：５０～１２：２５    ③キャリアアドバイス（学習の振返り）\n　　９：５０～１１：５０　　④個別の相談（要事前申込）　　　　　　"]
[null,"※　本校は，二足制になっております。必ず上靴をご持参ください。\n※　遅刻・不参加の場合は, 中学校・中学部から鳴滝総合（４６１-３２２１）へ連絡してください。"]

{"sheet":"集計","index":2,"n_rows":9,"n_cols":19,"rows_kept":9,"cut":false,"hidden":true,"merged":[[0,0,0,4]]}
["オープンキャンパス集計表（３年）",null,null,null,null,null,{"$f":"申込シート!D16","v":0}]
[]
["学校名","学年","氏名","ふりがな","性別","在籍","参加回数","保護者１","関係","保護者２","関係","個別相談","教職員","関係"]
[{"$f":"S4","v":"0"},{"$f":"参加確認!B18","v":2},{"$f":"参加確認!C19","v":0},{"$f":"参加確認!C18","v":0},{"$f":"参加確認!E18","v":0},{"$f":"参加確認!F18","v":0},{"$f":"参加確認!H18","v":0},{"$f":"参加確認!J18","v":0},{"$f":"参加確認!N18","v":0},{"$f":"参加確認!P18","v":0},{"$f":"参加確認!T18","v":0},{"$f":"参加確認!W18","v":0},{"$f":"申込シート!B39","v":0},{"$f":"申込シート!G39","v":0},null,null,null,{"$f":"申込シート!R9","v":0},{"$f":"SUBSTITUTE(R4,\"京都市立\",\"\")","v":"0"}]
[{"$f":"$A$4","v":"0"},{"$f":"参加確認!B20","v":2},{"$f":"参加確認!C21","v":0},{"$f":"参加確認!C20","v":0},{"$f":"参加確認!E20","v":0},{"$f":"参加確認!F20","v":0},{"$f":"参加確認!H20","v":0},{"$f":"参加確認!J20","v":0},{"$f":"参加確認!N20","v":0},{"$f":"参加確認!P20","v":0},{"$f":"参加確認!T20","v":0},{"$f":"参加確認!W20","v":0},{"$f":"申込シート!B40","v":0},{"$f":"申込シート!G40","v":0}]
[{"$f":"$A$4","v":"0"},{"$f":"参加確認!B22","v":2},{"$f":"参加確認!C23","v":0},{"$f":"参加確認!C22","v":0},{"$f":"参加確認!E22","v":0},{"$f":"参加確認!F22","v":0},{"$f":"参加確認!H22","v":0},{"$f":"参加確認!J22","v":0},{"$f":"参加確認!N22","v":0},{"$f":"参加確認!P22","v":0},{"$f":"参加確認!T22","v":0},{"$f":"参加確認!W22","v":0},{"$f":"申込シート!B41","v":0},{"$f":"申込シート!G41","v":0}]
["0",{"$f":"参加確認!B24","v":2},{"$f":"参加確認!C25","v":0},{"$f":"参加確認!C24","v":0},{"$f":"参加確認!E24","v":0},{"$f":"参加確認!F24","v":0},{"$f":"参加確認!H24","v":0},{"$f":"参加確認!J24","v":0},{"$f":"参加確認!N24","v":0},{"$f":"参加確認!P24","v":0},{"$f":"参加確認!T24","v":0},{"$f":"参加確認!W24","v":0}]
["0",{"$f":"参加確認!B26","v":2},{"$f":"参加確認!C27","v":0},{"$f":"参加確認!C26","v":0},{"$f":"参加確認!E26","v":0},{"$f":"参加確認!F26","v":0},{"$f":"参加確認!H26","v":0},{"$f":"参加確認!J26","v":0},{"$f":"参加確認!N26","v":0},{"$f":"参加確認!P26","v":0},{"$f":"参加確認!T26","v":0},{"$f":"参加確認!W26","v":0}]
["0",{"$f":"参加確認!B28","v":2},{"$f":"参加確認!C29","v":0},{"$f":"参加確認!C28","v":0},{"$f":"参加確認!E28","v":0},{"$f":"参加確認!F28","v":0},{"$f":"参加確認!H28","v":0},{"$f":"参加確認!J28","v":0},{"$f":"参加確認!N28","v":0},{"$f":"参加確認!P28","v":0},{"$f":"参加確認!T28","v":0},{"$f":"参加確認!W28","v":0}]